fUST/lending_fUST_20250930
["ID","MTS","AMOUNT","RATE_DAILY","PERIOD"]
[388470976,1759182213338,-10000.01,0.00021731,2]
[388470977,1759182217165,-76.91687771,0.00029,120]
[388470978,1759182217368,-23.18601462,0.00029,120]
[388470979,1759182217396,-177.01977004,0.000295,120]
[388470980,1759182217424,-200.0,0.0003,120]
[388470981,1759182217452,-562.84096176,0.0003,120]
[388470982,1759182217520,-23.18601462,0.0003,120]
[388470983,1759182217550,-177.01977004,0.0003,120]
[388470984,1759182217576,-200.0,0.0003,120]
[388470985,1759182217605,-396.68095246,0.0003,120]
[388470986,1759182217615,-963.04674642,0.0003,120]
[388470987,1759182218725,-558.95325358,0.0003,120]
[388470988,1759182221065,-10000.01,0.00021731,2]
[388470989,1759182221229,-10000.01,0.00021731,2]
[388470990,1759182221396,-10000.01,0.00021731,2]
[388470991,1759182221564,-10000.01,0.00021731,2]
[388470992,1759182221730,-10000.01,0.00021731,2]
[388470993,1759182221938,-10000.01,0.00021731,2]
[388470994,1759182222116,-10000.01,0.00021731,2]
[388470995,1759182222346,-10000.01,0.00021731,2]
[388470997,1759182231473,-10000.01,0.00021731,2]
[388470998,1759182250887,160.0,0.0003,120]
[388470999,1759182258522,400.0,0.0002,30]
[388471000,1759182261147,-567.78,0.00021721,3]
[388471001,1759182261205,-274.47,0.00021721,10]
[388471002,1759182261252,-258.92,0.00021721,10]
[388471003,1759182261299,-300.0,0.0002173,2]
[388471004,1759182261514,-7197.67,0.00021731,2]
[388471005,1759182261553,-10000.01,0.00021731,2]
[388471006,1759182261695,-10000.01,0.00021731,2]
[388471007,1759182261748,-10000.01,0.00021731,2]
[388471008,1759182261874,-10000.01,0.00021731,2]
[388471009,1759182262041,-10000.01,0.00021731,2]
[388471010,1759182262201,-10000.01,0.00021731,2]
[388471011,1759182262368,-10000.01,0.00021731,2]
[388471012,1759182262550,-10000.01,0.00021731,2]
[388471013,1759182262802,-73.896895,0.00030137,120]
[388471014,1759182263209,-178.586124,0.00030137,120]
[388471015,1759182263219,-73.896895,0.0003014,120]
[388471016,1759182263254,-175.0,0.0003014,120]
[388471017,1759182263971,-77.483019,0.0003014,120]
[388471018,1759182264588,-175.0,0.000308,120]
[388471019,1759182271186,-10000.01,0.00021731,2]
[388471020,1759182281419,-10000.01,0.00021731,2]
[388471021,1759182281688,-10000.01,0.00021731,2]
[388471022,1759182281909,-10000.01,0.00021731,2]
[388471023,1759182282028,-10000.01,0.00021731,2]
[388471024,1759182282201,-10000.01,0.00021731,2]
[388471025,1759182282401,-3374.78637021,0.00021731,2]
[388471028,1759182300328,171.81818016,0.00021731,2]
[388471029,1759182312652,3078.61907942,0.00021631,2]
[388471030,1759182312705,10000.01,0.00021631,2]
[388471031,1759182312753,10000.01,0.00021631,2]
[388471032,1759182312800,10000.01,0.00021631,2]
[388471033,1759182312850,10000.01,0.00021631,2]
[388471034,1759182312899,10000.01,0.00021631,2]
[388471035,1759182312946,10000.01,0.00021631,2]
[388471036,1759182312993,10000.01,0.00021631,2]
[388471037,1759182313042,10000.01,0.00021631,2]
[388471038,1759182313094,10000.01,0.00021631,2]
[388471039,1759182313534,-303.3802545,0.00021631,2]
[388471041,1759182346499,-214.531751,0.00020808,2]
[388471043,1759182353037,-6749.57274042,0.00020827,2]
[388471044,1759182354725,-444.31279608,0.00020827,2]
[388471045,1759182356491,-248.4318093,0.00020827,2]
[388471046,1759182358100,-195.0676947,0.00020827,2]
[388471049,1759182360240,-159.2550529,0.00020827,2]
[388471052,1759182361461,-10000.01,0.00020827,2]
[388471053,1759182361574,-479.1332453,0.00020827,2]
[388471054,1759182361628,-9041.7435094,0.00020827,2]
[388471055,1759182361792,-215.77,0.00021621,10]
[388471056,1759182361860,-179.8,0.00021621,10]
[388471057,1759182361926,-899.05,0.00021621,10]
[388471058,1759182361985,-988.16,0.00021621,3]
[388471059,1759182362323,-5434.45,0.00021631,2]
[388471060,1759182362400,-10000.01,0.00021631,2]
[388471061,1759182362478,-300.0,0.00020826,2]
[388471062,1759182362580,-9400.01,0.00021631,2]
[388471063,1759182362644,-10000.01,0.00021631,2]
[388471064,1759182362875,-10000.01,0.00021631,2]
[388471065,1759182363075,-10000.01,0.00021631,2]
[388471066,1759182363276,-195.07,0.00021621,10]
[388471067,1759182363387,-9609.87,0.00021631,2]
[388471068,1759182371365,-841.6,0.00021621,3]
[388471069,1759182371480,-8316.81,0.00021631,2]
[388471070,1759182377828,-159.26,0.00021621,10]
[388471071,1759182377854,-136.60066346,0.00021631,2]
[388471079,1759182401648,-10000.01,0.00020797,2]
[388471080,1759182401955,-1927.2075181,0.00020797,2]
[388471081,1759182402004,-6145.5949638,0.00020797,2]
[388471083,1759182455461,174.258073,0.0002068,2]
[388471086,1759182477634,9825.751927,0.0002068,2]
[388471087,1759182477679,7421.719591,0.0002068,2]
[388471091,1759182575789,160.0,0.0003014,120]
[388471116,1759182632322,-151.79164017,0.00021531,2]
[388471117,1759182632331,-50208.6428677,0.00021531,2]
[388471314,1759182640190,-809.32397512,0.00021521,2]
[388471315,1759182640199,-2432.70087741,0.00021531,2]
[388471316,1759182640211,-1117.74283683,0.00021531,2]
[388471317,1759182640223,-28122.27500411,0.00021531,2]
[388471318,1759182640236,-4758.5,0.00021531,2]
[388471319,1759182641601,-13892.98011051,0.00021531,2]
[388471320,1759182641614,-14052.03969588,0.00021531,2]
[388471345,1759182643514,-552329.67102503,0.00021531,2]
[388471347,1759182643525,-6533.74669821,0.00021531,2]
[388471350,1759182643536,-20768.40068442,0.00021531,2]
[388471553,1759182646275,-480.0,0.00021521,3]
[388471564,1759182646376,-1607.19,0.00021521,3]
[388471566,1759182646386,-317194.61691373,0.00021531,2]
[388471568,1759182646395,-841.6,0.00021621,3]
[388471569,1759182646405,-1200.0,0.00021629,2]
[388471571,1759182646419,-1200.0,0.00021629,2]
[388471573,1759182646428,-500.0,0.0002163,2]
[388471575,1759182646437,-300.0,0.0002163,2]
[388471577,1759182646448,-300.0,0.0002163,2]
[388471579,1759182646457,-300.0,0.0002163,2]
[388471581,1759182646466,-300.0,0.0002163,2]
[388471583,1759182646476,-300.0,0.0002163,2]
[388471585,1759182646486,-203720.13000262,0.00021631,2]
[388471587,1759182646495,-684.2437082,0.00021631,2]
[388471589,1759182646504,-50000.0,0.0002173,2]
[388471590,1759182646513,-500.0,0.0002173,2]
[388471592,1759182646522,-500.0,0.0002173,2]
[388471594,1759182646532,-500.0,0.0002173,2]
[388471596,1759182646541,-300.0,0.0002173,2]
[388471597,1759182646550,-500.0,0.0002173,2]
[388471598,1759182646559,-500.0,0.0002173,2]
[388471599,1759182646568,-500.0,0.0002173,2]
[388471600,1759182646577,-500.0,0.0002173,2]
[388471601,1759182646586,-500.0,0.0002173,2]
[388471602,1759182646596,-500.0,0.0002173,2]
[388471603,1759182646606,-500.0,0.0002173,2]
[388471604,1759182646615,-500.0,0.0002173,2]
[388471605,1759182646624,-500.0,0.0002173,2]
[388471606,1759182646634,-180.0,0.00021731,2]
[388471607,1759182646643,-2000.0,0.00021731,2]
[388471608,1759182646652,-2000.0,0.00021731,2]
[388471609,1759182646662,-2000.0,0.00021731,2]
[388471610,1759182646671,-2000.0,0.00021731,2]
[388471611,1759182646680,-2000.0,0.00021731,2]
[388471612,1759182646690,-2000.0,0.00021731,2]
[388471613,1759182646699,-2000.0,0.00021731,2]
[388471614,1759182646708,-2000.0,0.00021731,2]
[388471615,1759182646717,-2000.0,0.00021731,2]
[388471616,1759182646727,-2000.0,0.00021731,2]
[388471617,1759182646736,-2000.0,0.00021731,2]
[388471618,1759182646746,-2000.0,0.00021731,2]
[388471619,1759182646755,-2000.0,0.00021731,2]
[388471620,1759182646764,-457.389,0.00021731,2]
[388471621,1759182646774,-500.0,0.000218,2]
[388471622,1759182646784,-500.0,0.00021917,2]
[388471623,1759182646793,-270.86999717,0.00021917,2]
[388471624,1759182646802,-480.0,0.00021917,2]
[388471625,1759182646813,-508.78208174,0.00021917,2]
[388471626,1759182646823,-480.0,0.00021917,2]
[388471627,1759182646833,-480.0,0.00021917,2]
[388471628,1759182646842,-480.0,0.00021917,2]
[388471629,1759182646853,-480.0,0.00021917,2]
[388471630,1759182646864,-484.01351364,0.00021917,2]
[388471631,1759182646874,-480.0,0.00021917,2]
[388471632,1759182646884,-480.0,0.00021917,2]
[388471633,1759182646895,-480.0,0.00021917,2]
[388471634,1759182646904,-480.0,0.00021917,2]
[388471635,1759182646914,-480.0,0.00021917,2]
[388471636,1759182646923,-480.0,0.00021917,2]
[388471637,1759182646932,-480.0,0.00021917,2]
[388471638,1759182646942,-545.68,0.00021917,2]
[388471639,1759182646951,-480.0,0.00021917,2]
[388471640,1759182646961,-480.0,0.00021917,2]
[388471641,1759182646970,-483.4339518,0.00021917,2]
[388471642,1759182646979,-480.0,0.00021917,2]
[388471643,1759182646988,-480.0,0.00021917,2]
[388471644,1759182646998,-480.0,0.00021917,2]
[388471645,1759182647007,-202.70282683,0.00021917,2]
[388471646,1759182647016,-480.0,0.00021917,2]
[388471647,1759182647025,-480.0,0.00021917,2]
[388471648,1759182647035,-500.0,0.00021917,2]
[388471649,1759182647044,-500.0,0.00021917,2]
[388471650,1759182647052,-500.0,0.00021917,2]
[388471651,1759182647061,-500.0,0.00021917,2]
[388471652,1759182647072,-500.0,0.00021917,2]
[388471653,1759182647083,-500.0,0.00021917,2]
[388471654,1759182647092,-498.39992124,0.00021917,2]
[388471655,1759182647101,-480.0,0.00021917,2]
[388471656,1759182647111,-480.0,0.00021917,2]
[388471657,1759182647120,-505.94,0.00021917,2]
[388471658,1759182647131,-480.0,0.00021917,2]
[388471659,1759182647140,-480.0,0.00021917,2]
[388471660,1759182647149,-480.0,0.00021917,2]
[388471661,1759182647159,-688.13,0.00021917,2]
[388471662,1759182647168,-480.0,0.00021917,2]
[388471663,1759182647180,-480.0,0.00021917,2]
[388471664,1759182647189,-480.0,0.00021917,2]
[388471665,1759182647198,-480.0,0.00021917,2]
[388471666,1759182647207,-480.0,0.00021917,2]
[388471667,1759182647217,-480.0,0.00021917,2]
[388471668,1759182647226,-480.0,0.00021917,2]
[388471669,1759182647235,-480.0,0.00021917,2]
[388471670,1759182647244,-871.52,0.00021917,2]
[388471671,1759182647254,-480.0,0.00021917,2]
[388471672,1759182647263,-480.0,0.00021917,2]
[388471673,1759182647272,-480.0,0.00021917,2]
[388471674,1759182647281,-480.0,0.00021917,2]
[388471675,1759182647290,-480.0,0.00021917,2]
[388471676,1759182647300,-480.0,0.00021917,2]
[388471677,1759182647310,-480.0,0.00021917,2]
[388471678,1759182647321,-480.0,0.00021917,2]
[388471679,1759182647330,-480.0,0.00021917,2]
[388471680,1759182647339,-480.0,0.00021917,2]
[388471681,1759182647348,-480.0,0.00021917,2]
[388471682,1759182647357,-480.0,0.00021917,2]
[388471683,1759182647366,-480.0,0.00021917,2]
[388471684,1759182647374,-480.0,0.00021917,2]
[388471685,1759182647383,-480.0,0.00021917,2]
[388471686,1759182647392,-480.0,0.00021917,2]
[388471687,1759182647402,-480.0,0.00021917,2]
[388471688,1759182647414,-480.0,0.00021917,2]
[388471689,1759182647423,-480.0,0.00021917,2]
[388471690,1759182647433,-480.0,0.00021917,2]
[388471691,1759182647442,-480.0,0.00021917,2]
[388471692,1759182647451,-480.0,0.00021917,2]
[388471693,1759182647460,-480.0,0.00021917,2]
[388471694,1759182647469,-480.0,0.00021917,2]
[388471695,1759182647478,-480.0,0.00021917,2]
[388471696,1759182647487,-480.0,0.00021917,2]
[388471697,1759182647496,-500.47,0.00021917,2]
[388471698,1759182647505,-480.0,0.00021917,2]
[388471699,1759182647514,-480.0,0.00021917,2]
[388471700,1759182647523,-442.19019922,0.00021917,2]
[388471701,1759182647533,-480.0,0.00021917,2]
[388471702,1759182647542,-480.0,0.00021917,2]
[388471703,1759182647551,-480.0,0.00021917,2]
[388471704,1759182647560,-524.06509231,0.00021917,2]
[388471705,1759182647569,-480.0,0.00021917,2]
[388471706,1759182647578,-480.0,0.00021917,2]
[388471707,1759182647589,-480.0,0.00021917,2]
[388471708,1759182647599,-480.0,0.00021917,2]
[388471709,1759182647608,-480.0,0.00021917,2]
[388471710,1759182647617,-480.0,0.00021917,2]
[388471711,1759182647627,-480.0,0.00021917,2]
[388471712,1759182647636,-480.0,0.00021917,2]
[388471713,1759182647645,-480.0,0.00021917,2]
[388471714,1759182647654,-480.0,0.00021917,2]
[388471715,1759182647663,-480.0,0.00021917,2]
[388471716,1759182647672,-611.79429863,0.00021917,2]
[388471717,1759182647682,-580.04,0.00021917,2]
[388471718,1759182647691,-480.0,0.00021917,2]
[388471719,1759182647699,-480.0,0.00021917,2]
[388471720,1759182647709,-480.0,0.00021917,2]
[388471721,1759182647718,-480.0,0.00021917,2]
[388471722,1759182647728,-480.0,0.00021917,2]
[388471723,1759182647737,-480.0,0.00021917,2]
[388471724,1759182647746,-480.0,0.00021917,2]
[388471725,1759182647755,-480.0,0.00021917,2]
[388471726,1759182647765,-480.0,0.00021917,2]
[388471727,1759182647774,-480.0,0.00021917,2]
[388471728,1759182647783,-1050.03,0.00021917,2]
[388471729,1759182647792,-480.0,0.00021917,2]
[388471730,1759182647801,-480.0,0.00021917,2]
[388471731,1759182647809,-1020.65,0.00021917,2]
[388471732,1759182647818,-480.0,0.00021917,2]
[388471733,1759182647827,-480.0,0.00021917,2]
[388471734,1759182647836,-480.0,0.00021917,2]
[388471735,1759182647844,-539.3,0.00021917,2]
[388471736,1759182647853,-480.0,0.00021917,2]
[388471737,1759182647862,-480.0,0.00021917,2]
[388471738,1759182647872,-480.0,0.00021917,2]
[388471739,1759182647881,-480.0,0.00021917,2]
[388471740,1759182647890,-480.0,0.00021917,2]
[388471741,1759182647900,-480.0,0.00021917,2]
[388471742,1759182647910,-480.0,0.00021917,2]
[388471743,1759182647919,-766.45,0.00021917,2]
[388471744,1759182647928,-586.9,0.00021917,2]
[388471745,1759182647938,-600.26,0.00021917,2]
[388471746,1759182647947,-480.0,0.00021917,2]
[388471747,1759182647956,-480.0,0.00021917,2]
[388471748,1759182647965,-480.0,0.00021917,2]
[388471749,1759182647974,-998.5,0.00021917,2]
[388471750,1759182647983,-532.31,0.00021917,2]
[388471751,1759182647992,-480.0,0.00021917,2]
[388471752,1759182648002,-480.0,0.00021917,2]
[388471753,1759182648011,-480.0,0.00021917,2]
[388471754,1759182648020,-3057.69,0.00021917,2]
[388471755,1759182648029,-500.0,0.00021917,2]
[388471756,1759182648038,-500.0,0.00021917,2]
[388471757,1759182648047,-480.0,0.00021917,2]
[388471758,1759182648056,-500.0,0.00021917,2]
[388471759,1759182648065,-500.0,0.00021917,2]
[388471760,1759182648074,-500.0,0.00021917,2]
[388471761,1759182648083,-500.0,0.00021917,2]
[388471762,1759182648093,-500.0,0.00021917,2]
[388471763,1759182648102,-500.0,0.00021917,2]
[388471764,1759182648112,-480.0,0.00021917,2]
[388471765,1759182648122,-789.24,0.00021917,2]
[388471766,1759182648131,-480.0,0.00021917,2]
[388471767,1759182648140,-1032.4,0.00021917,2]
[388471768,1759182648150,-482.38821703,0.00021917,2]
[388471769,1759182648159,-480.0,0.00021917,2]
[388471770,1759182648168,-201.94616361,0.00021917,2]
[388471771,1759182648178,-480.0,0.00021917,2]
[388471772,1759182648187,-500.0,0.00021917,2]
[388471773,1759182648197,-480.0,0.00021917,2]
[388471774,1759182648206,-480.0,0.00021917,2]
[388471775,1759182648215,-480.0,0.00021917,2]
[388471776,1759182648225,-1082.46,0.00021917,2]
[388471778,1759182648234,-480.0,0.00021917,2]
[388471779,1759182648243,-1190.1,0.00021917,2]
[388471780,1759182648252,-480.0,0.00021917,2]
[388471781,1759182648263,-480.0,0.00021917,2]
[388471782,1759182648272,-480.0,0.00021917,2]
[388471783,1759182648281,-480.0,0.00021917,2]
[388471784,1759182648290,-480.0,0.00021917,2]
[388471785,1759182648299,-480.0,0.00021917,2]
[388471786,1759182648308,-618.81,0.00021917,2]
[388471787,1759182648317,-480.0,0.00021917,2]
[388471788,1759182648327,-480.0,0.00021917,2]
[388471789,1759182648336,-480.0,0.00021917,2]
[388471790,1759182648345,-864.83,0.00021917,2]
[388471791,1759182648354,-480.0,0.00021917,2]
[388471792,1759182648363,-480.0,0.00021917,2]
[388471793,1759182648372,-480.0,0.00021917,2]
[388471794,1759182648381,-480.0,0.00021917,2]
[388471795,1759182648391,-480.0,0.00021917,2]
[388471796,1759182648400,-296.56919635,0.00021917,2]
[388471797,1759182648412,-480.0,0.00021917,2]
[388471798,1759182648421,-480.0,0.00021917,2]
[388471799,1759182648431,-423.46784794,0.00021917,2]
[388471800,1759182648440,-500.0,0.00021917,2]
[388471801,1759182648449,-500.0,0.00021917,2]
[388471802,1759182648458,-2408.39,0.00021917,2]
[388471803,1759182648467,-480.0,0.00021917,2]
[388471804,1759182648476,-480.0,0.00021917,2]
[388471805,1759182648485,-480.0,0.00021917,2]
[388471806,1759182648494,-480.0,0.00021917,2]
[388471807,1759182648503,-480.0,0.00021917,2]
[388471808,1759182648512,-830.33,0.00021917,2]
[388471809,1759182648521,-480.0,0.00021917,2]
[388471810,1759182648530,-480.0,0.00021917,2]
[388471811,1759182648539,-480.0,0.00021917,2]
[388471812,1759182648548,-480.0,0.00021917,2]
[388471813,1759182648558,-480.0,0.00021917,2]
[388471814,1759182648567,-480.0,0.00021917,2]
[388471815,1759182648575,-480.0,0.00021917,2]
[388471816,1759182648585,-530.23,0.00021917,2]
[388471817,1759182648594,-480.0,0.00021917,2]
[388471818,1759182648603,-480.0,0.00021917,2]
[388471819,1759182648612,-480.0,0.00021917,2]
[388471820,1759182648621,-735.63,0.00021917,2]
[388471821,1759182648630,-480.0,0.00021917,2]
[388471822,1759182648639,-480.0,0.00021917,2]
[388471823,1759182648649,-480.0,0.00021917,2]
[388471825,1759182648658,-480.0,0.00021917,2]
[388471826,1759182648667,-480.0,0.00021917,2]
[388471828,1759182648676,-480.0,0.00021917,2]
[388471829,1759182648686,-480.0,0.00021917,2]
[388471830,1759182648695,-1105.47,0.00021917,2]
[388471831,1759182648704,-402.17092257,0.00021917,2]
[388471832,1759182648713,-1338.37,0.00021917,2]
[388471833,1759182648722,-480.0,0.00021917,2]
[388471835,1759182648731,-480.0,0.00021917,2]
[388471837,1759182648740,-1012.57,0.00021917,2]
[388471839,1759182648749,-480.0,0.00021917,2]
[388471841,1759182648758,-500.0,0.00021917,2]
[388471842,1759182648766,-480.0,0.00021917,2]
[388471844,1759182648775,-500.0,0.00021917,2]
[388471845,1759182648784,-480.0,0.00021917,2]
[388471847,1759182648793,-500.0,0.00021917,2]
[388471849,1759182648803,-500.0,0.00021917,2]
[388471850,1759182648812,-500.0,0.00021917,2]
[388471851,1759182648821,-500.0,0.00021917,2]
[388471852,1759182648830,-480.0,0.00021917,2]
[388471853,1759182648839,-500.0,0.00021917,2]
[388471854,1759182648850,-500.0,0.00021917,2]
[388471855,1759182648858,-480.0,0.00021917,2]
[388471856,1759182648868,-480.0,0.00021917,2]
[388471857,1759182648877,-377.54326402,0.00021917,2]
[388471858,1759182648886,-480.0,0.00021917,2]
[388471859,1759182648895,-481.96154604,0.00021917,2]
[388471860,1759182648904,-480.0,0.00021917,2]
[388471861,1759182648913,-327.49792056,0.00021917,2]
[388471862,1759182648923,-480.0,0.00021917,2]
[388471863,1759182648932,-480.0,0.00021917,2]
[388471864,1759182648941,-480.0,0.00021917,2]
[388471865,1759182648950,-480.0,0.00021917,2]
[388471866,1759182648959,-482.03596892,0.00021917,2]
[388471867,1759182648968,-480.0,0.00021917,2]
[388471868,1759182648977,-480.0,0.00021917,2]
[388471869,1759182648986,-1830.39,0.00021917,2]
[388471870,1759182648995,-1084.4,0.00021917,2]
[388471871,1759182649003,-480.0,0.00021917,2]
[388471872,1759182649013,-2558.62,0.00021917,2]
[388471873,1759182649023,-471.32102308,0.00021917,2]
[388471874,1759182649032,-480.0,0.00021917,2]
[388471875,1759182649042,-480.0,0.00021917,2]
[388471876,1759182649051,-480.0,0.00021917,2]
[388471877,1759182649061,-480.0,0.00021917,2]
[388471878,1759182649069,-480.0,0.00021917,2]
[388471879,1759182649078,-481.60832137,0.00021917,2]
[388471880,1759182649088,-480.0,0.00021917,2]
[388471881,1759182649096,-480.0,0.00021917,2]
[388471882,1759182649105,-640.94,0.00021917,2]
[388471883,1759182649115,-480.0,0.00021917,2]
[388471884,1759182649125,-480.0,0.00021917,2]
[388471885,1759182649135,-480.0,0.00021917,2]
[388471887,1759182649143,-480.0,0.00021917,2]
[388471889,1759182649153,-480.0,0.00021917,2]
[388471891,1759182649161,-480.0,0.00021917,2]
[388471893,1759182649170,-757.7,0.00021917,2]
[388471894,1759182649179,-480.0,0.00021917,2]
[388471895,1759182649188,-4595.57,0.00021917,2]
[388471896,1759182649197,-480.0,0.00021917,2]
[388471897,1759182649206,-480.0,0.00021917,2]
[388471899,1759182649215,-480.0,0.00021917,2]
[388471901,1759182649225,-480.0,0.00021917,2]
[388471903,1759182649234,-480.0,0.00021917,2]
[388471905,1759182649243,-1563.31035424,0.00021917,2]
[388471907,1759182649260,-352.78964576,0.00021917,2]
[388471908,1759182649270,-480.0,0.00021917,2]
[388471909,1759182649279,-480.0,0.00021917,2]
[388471910,1759182649288,-824.41,0.00021917,2]
[388471911,1759182649298,-480.0,0.00021917,2]
[388471912,1759182649308,-480.0,0.00021917,2]
[388471913,1759182649317,-691.76,0.00021917,2]
[388471914,1759182649326,-480.0,0.00021917,2]
[388471915,1759182649335,-480.0,0.00021917,2]
[388471916,1759182649344,-480.0,0.00021917,2]
[388471917,1759182649353,-1071.2,0.00021917,2]
[388471918,1759182649361,-480.0,0.00021917,2]
[388471919,1759182649371,-480.0,0.00021917,2]
[388471920,1759182649380,-480.0,0.00021917,2]
[388471921,1759182649389,-480.0,0.00021917,2]
[388471922,1759182649399,-480.0,0.00021917,2]
[388471923,1759182649410,-480.0,0.00021917,2]
[388471924,1759182649420,-480.0,0.00021917,2]
[388471925,1759182649430,-480.0,0.00021917,2]
[388471926,1759182649439,-480.0,0.00021917,2]
[388471927,1759182649448,-480.0,0.00021917,2]
[388471928,1759182649457,-480.0,0.00021917,2]
[388471929,1759182649466,-1488.97573652,0.00021917,2]
[388471930,1759182703786,-5000.0,0.00021513,2]
[388471931,1759182705020,160.179415,0.00024,30]
[388471932,1759182804582,-257.23,0.00021519,10]
[388471933,1759182804605,-86.40397483,0.00021528,2]
[388471934,1759182806664,-213.59602517,0.00021528,2]
[388471935,1759182806689,-118.33826264,0.00021529,2]
[388471936,1759182808710,-248.90214496,0.00021529,2]
[388471937,1759182810172,-385.41,0.00021529,2]
[388471938,1759182811166,0.01,0.00021513,2]
[388471939,1759182811218,924.4604076,0.00021513,2]
[388471940,1759182812184,-447.3495924,0.00021529,2]
[388471941,1759182812209,-500.0,0.00021529,2]
[388471942,1759182812232,-238.77507235,0.00021529,2]
[388471943,1759182814461,-152.0,0.00021529,2]
[388471944,1759182817216,-156.54737027,0.00021529,2]
[388471945,1759182817240,-7.35976374,0.00021529,2]
[388471946,1759182820702,-300.0,0.00021529,2]
[388471948,1759182838551,151.0,0.000215,3]
[388471954,1759182939042,860.82971443,0.00021428,2]
[388471955,1759182972850,-154.43112863,0.00021518,3]
[388471956,1759182985999,-256.2619087,0.00021518,3]
[388471957,1759183001926,-152.0,0.00021518,3]
[388471958,1759183002889,-3140.99696267,0.00021518,3]
[388471959,1759183002953,-1851.84,0.00021518,3]
[388471960,1759183003376,-925.92,0.00021518,3]
[388471961,1759183014559,-500.0,0.00021521,2]
[388471962,1759183024677,1223.53466475,0.00021518,2]
[388471963,1759183175303,1481.8423907,0.0002073,2]
[388471964,1759183222816,753.2260001,0.00021426,2]
[388471966,1759183223447,-300.0,0.00021525,2]
[388471967,1759183223522,-300.0,0.00021525,2]
[388471968,1759183223594,-300.0,0.00021525,2]
[388471969,1759183223660,-300.0,0.00021525,2]
[388471970,1759183223735,-300.0,0.00021525,2]
[388471971,1759183231071,163.01975,0.00033514,60]
[388471972,1759183231106,293.402,0.00033514,60]
[388471973,1759183238136,428.72570984,0.00021525,2]
[388471974,1759183238207,500.0,0.00021525,2]
[388471975,1759183238282,500.0,0.00021525,2]
[388471976,1759183238356,500.0,0.00021525,2]
[388471977,1759183238436,189.39623656,0.00021525,2]
[388471978,1759183238642,500.0,0.00021525,2]
[388471979,1759183239441,500.0,0.00021525,2]
[388471980,1759183240160,500.0,0.00021525,2]
[388471981,1759183240401,572.65546623,0.00021525,2]
[388471982,1759183240480,500.0,0.00021525,2]
[388471983,1759183240557,500.0,0.00021525,2]
[388471984,1759183240678,500.0,0.00021525,2]
[388471985,1759183240742,500.0,0.00021525,2]
[388471986,1759183240803,500.0,0.00021525,2]
[388471987,1759183240867,309.23258737,0.00021525,2]
[388471988,1759183240927,190.76741263,0.00021525,2]
[388471989,1759183240991,500.0,0.00021525,2]
[388471990,1759183241057,500.0,0.00021525,2]
[388471991,1759183241128,500.0,0.00021525,2]
[388471992,1759183241203,500.0,0.00021525,2]
[388471993,1759183241267,500.0,0.00021525,2]
[388471994,1759183241329,500.0,0.00021525,2]
[388471995,1759183241391,500.0,0.00021525,2]
[388471996,1759183241453,500.0,0.00021525,2]
[388471997,1759183241513,500.0,0.00021525,2]